bitfinex-derivatives/quotes_SOLF0:USTF0_20250819
["timestamp","ask_amount","ask_price","bid_price","bid_amount"]
[1755645558555,2.90697115,178.33,178.25,144.34]
[1755645559859,2.90697115,178.33,178.25,147.46]
[1755645562657,2.90697115,178.33,178.22,7.827183]
[1755645562860,2.87,178.32,178.22,3.12]
[1755645563568,2.90686285,178.29,178.22,3.12]
[1755645564060,2.90686285,178.29,178.21,144.04]
[1755645565265,2.90686285,178.29,178.2,3.12]
[1755645570261,3.77946923,178.26,178.2,3.12]
[1755645570565,6.92946923,178.26,178.2,3.12]
[1755645571462,0.03564628,178.25,178.2,3.12]
[1755645571767,3.18564628,178.25,178.16,143.98]
[1755645571963,3.18564628,178.25,178.17,3.01]
[1755645573768,6.96511551,178.25,178.17,3.01]
[1755645574867,3.18564628,178.25,178.17,3.01]
[1755645575065,3.77946923,178.23,178.17,3.01]
[1755645576065,6.92946923,178.23,178.13,3.01]
[1755645577466,3.15,178.22,178.13,3.01]
[1755645578371,3.77946923,178.2,178.13,3.01]
[1755645579869,3.15,178.17,178.11,143.42]
[1755645580071,6.92946923,178.17,178.11,143.42]
[1755645580263,6.92946923,178.17,178.12,3.01]
[1755645580467,3.77946923,178.17,178.11,143.42]
[1755645580767,3.77946923,178.17,178.14,3.01]
[1755645581670,0.03579538,178.18,178.12,3.01]
[1755645583673,3.77946923,178.26,178.14,3.01]
[1755645584268,6.92946923,178.26,178.13,3.77946923]
[1755645584474,6.92946923,178.26,178.15,3.01]
[1755645584980,3.15,178.25,178.15,3.01]
[1755645585278,140.84,178.35,178.15,3.01]
[1755645585279,3.15,178.22,178.15,3.01]
[1755645586375,3.77946923,178.23,178.15,3.01]
[1755645586577,6.92946923,178.26,178.15,3.01]
[1755645586882,6.92946923,178.3,178.18,5.6123]
[1755645587074,6.92946923,178.3,178.19,3.01]
[1755645587573,3.15,178.29,178.19,3.01]
[1755645587773,3.15,178.26,178.19,3.01]
[1755645587971,3.15,178.26,178.15,3.01]
[1755645588477,3.77946923,178.24,178.15,3.01]
[1755645588876,6.92946923,178.24,178.15,3.01]
[1755645592080,3.77946923,178.21,178.15,3.01]
[1755645592479,3.15,178.2,178.11,147.06686953]
[1755645592679,3.15,178.2,178.11,146.09]
[1755645592880,6.20290853,178.31,178.11,3.01]
[1755645592881,6.92946923,178.18,178.11,3.01]
[1755645596082,6.92946923,178.18,178.06,3.01]
[1755645596683,6.92946923,178.18,178.06,5.6162]
[1755645596886,6.92946923,178.18,178.07,3.01]
[1755645597584,3.15,178.21,178.06,3.01]
[1755645597778,3.77946923,178.2,178.06,7.70777212]
[1755645597978,3.77946923,178.2,178.08,5.6154]
[1755645598280,3.77946923,178.2,178.09,3.01]
[1755645599482,2.88,178.19,178.09,3.01]
[1755645599677,2.88,178.16,178.07,2.88]
[1755645600682,3.77946923,178.19,178.07,8.4958]
[1755645600880,3.77946923,178.16,178.08,2.88]
[1755645603276,2.88,178.18,178.08,2.88]
[1755645603277,6.65946923,178.18,178.08,2.88]
[1755645603684,2.88,178.18,178.08,2.88]
[1755645604281,2.88,178.21,178.09,3.77946923]
[1755645604486,3.77946923,178.23,178.12,3.77946923]
[1755645604788,2.88,178.22,178.13,2.88]
[1755645605482,2.88,178.19,178.09,2.88]
[1755645606689,6.65946923,178.17,178.09,2.88]
[1755645608090,3.77946923,178.17,178.06,4.69777212]
[1755645608287,2.88,178.16,178.06,4.69777212]
[1755645609384,2.88,178.16,178.07,4.69777212]
[1755645609590,2.88,178.16,178.05,8.5548885]
[1755645610392,2.88,178.16,178.05,7.57777212]
[1755645611191,3.77946923,178.14,178.05,4.69777212]
[1755645611392,2.88,178.13,178.03,149.47755455]
[1755645612284,2.88,178.13,178.01,381.77777212]
[1755645612489,2.88,178.13,178.02,2.88]
[1755645612690,3.77946923,178.11,178.02,2.88]
[1755645612890,2.88,178.1,178.02,2.88]
[1755645616695,6.65946923,178.14,178.02,14.09454135]
[1755645616890,6.65946923,178.14,178.03,2.88]
[1755645617086,6.65946923,178.14,178.04,2.88]
[1755645617087,2.88,178.14,178.04,2.88]
[1755645617393,2.88,178.14,178.05,2.88]
[1755645617789,3.77946923,178.17,178.05,3.77946923]
[1755645617989,6.65946923,178.17,178.06,2.88]
[1755645618591,2.88,178.16,178.06,2.88]
[1755645618789,2.88,178.13,178.03,4.69777212]
[1755645618990,2.88,178.13,178.02,2.88]
[1755645620188,3.77946923,178.11,178.02,2.88]
[1755645620393,2.88,178.1,178.02,2.88]
[1755645621698,2.88,178.1,178.01,377.08]
[1755645622293,3.77946923,178.08,178.0,143.02]
[1755645622490,2.88,178.07,178.0,143.02]
[1755645623595,2.88,178.07,178.0,145.9]
[1755645625502,2.88,178.11,178.01,2.88]
[1755645625795,2.88,178.14,178.01,4.69777212]
[1755645625995,2.88,178.14,178.05,2.88]
[1755645626396,2.88,178.14,178.01,3.77946923]
[1755645626397,2.88,178.14,178.01,7.57777212]
[1755645626590,2.88,178.14,178.03,2.88]
[1755645627794,2.88,178.14,178.03,5.617]
[1755645627991,2.88,178.14,178.04,2.88]
[1755645631801,3.77946923,178.2,178.0,8.67111335]
[1755645631802,3.03,178.11,178.0,8.67111335]
[1755645632098,3.03,178.11,178.0,2.99]
[1755645632500,11.23,178.1,178.0,2.99]
[1755645632698,6.80946923,178.09,178.0,2.99]
[1755645632900,3.03,178.08,178.0,2.99]
[1755645633098,5.6178,178.01,178.0,2.99]
[1755645635411,5.6176,178.02,177.99,152.6218578]
[1755645635610,5.6176,178.02,178.01,2.99]
[1755645636511,3.03,178.08,177.99,147.0035578]
[1755645636711,3.03,178.08,177.99,142.3]
[1755645639015,3.03,178.08,178.0,2.99]
[1755645639216,3.03,178.11,178.0,2.99]
[1755645639515,3.03,178.11,178.0,8.608]
[1755645639814,3.03,178.11,178.0,2.99]
[1755645641014,3.03,178.14,178.03,2.99]
[1755645641815,3.03,178.14,178.04,5.6167]
[1755645642116,3.03,178.17,178.06,2.99]
[1755645642417,3.03,178.17,178.05,3.77946923]
[1755645642418,3.03,178.17,178.08,2.99]
[1755645643314,3.77946923,178.16,178.08,2.99]
[1755645643617,3.03,178.15,178.07,142.26]
[1755645644012,3.03,178.15,178.08,2.99]
[1755645644613,6.80946923,178.19,178.08,2.99]
[1755645644816,3.03,178.19,178.08,3.77946923]
[1755645645019,3.03,178.19,178.1,5.6146]
[1755645645416,3.03,178.19,178.09,2.99]
[1755645646016,3.03,178.19,178.09,8.6052]
[1755645647816,3.03,178.19,178.1,5.6149]
[1755645648721,3.03,178.19,178.12,2.99]
[1755645648920,3.03,178.23,178.12,2.99]
[1755645649225,3.03,178.23,178.14,5.6135]
[1755645649422,3.03,178.23,178.14,2.99]
[1755645649816,3.03,178.21,178.11,8.6046]
[1755645650127,3.03,178.21,178.11,2.99]
[1755645650515,3.77946923,178.19,178.11,2.99]
[1755645650721,3.03,178.18,178.08,142.18]
[1755645651829,3.03,178.18,178.09,2.99]
[1755645652122,3.77946923,178.22,178.09,2.99]
[1755645652123,3.03,178.21,178.09,2.99]
[1755645652319,3.03,178.21,178.1,2.99]
[1755645653016,3.03,178.21,178.1,8.6048]
[1755645653220,3.03,178.21,178.1,2.99]
[1755645653926,3.03,178.21,178.1,8.6047]
[1755645654126,3.03,178.21,178.1,2.99]
[1755645654915,3.77946923,178.15,178.06,2.99]
[1755645655122,3.03,178.14,178.06,2.99]
[1755645655622,3.03,178.19,178.06,2.99]
[1755645655815,3.77946923,178.22,178.09,2.99]
[1755645656020,3.03,178.21,178.09,2.99]
[1755645658826,3.77946923,178.19,178.09,2.99]
[1755645659029,2.89,178.18,178.09,2.99]
[1755645660432,2.89,178.15,178.06,2.89]
[1755645662230,2.89,178.12,178.03,142.32]
[1755645662628,3.77946923,178.2,178.05,2.89]
[1755645662826,3.77946923,178.16,178.05,2.89]
[1755645663132,6.66946923,178.16,178.05,8.5062]
[1755645663431,6.66946923,178.16,178.05,2.89]
[1755645664332,3.77946923,178.19,178.06,2.89]
[1755645664527,2.89,178.22,178.11,3.77946923]
[1755645664731,2.89,178.22,178.12,2.89]
[1755645665333,2.89,178.22,178.12,8.504]
[1755645666035,40.20274255,178.6,178.15,2.89]
[1755645666036,3.77946923,178.29,178.15,2.89]
[1755645666221,2.89,178.28,178.15,2.89]
[1755645666425,2.89,178.28,178.18,5.6123]
[1755645666628,2.89,178.28,178.19,2.89]
[1755645666834,2.89,178.32,178.21,2.89]
[1755645667327,2.89,178.32,178.22,0.03769141]
[1755645667523,2.89,178.32,178.25,5.6102]
[1755645667731,2.89,178.36,178.24,2.89]
[1755645668231,2.89,178.33,178.24,2.89]
[1755645668433,2.89,178.33,178.28,0.03551981]
[1755645668629,5.87438215,178.37,178.28,0.03551981]
[1755645668828,2.89,178.34,178.28,0.03551981]
[1755645669324,2.89,178.34,178.24,2.89]
[1755645671122,2.89,178.34,178.2,2.89]
[1755645671530,2.89,178.31,178.2,2.89]
[1755645672130,2.89,178.31,178.21,5.6114]
[1755645672433,2.89,178.31,178.22,2.89]
[1755645674329,2.89,178.35,178.22,2.89]
[1755645674530,2.89,178.35,178.24,2.89]
[1755645676230,2.89,178.35,178.25,5.6102]
[1755645676435,2.89,178.35,178.26,2.89]
[1755645685236,2.89,178.35,178.26,8.4999]
[1755645685639,2.89,178.39,178.24,2.89]
[1755645688045,2.89,178.39,178.26,5.6098]
[1755645688439,2.89,178.39,178.24,2.89]
[1755645689545,3.03,178.36,178.24,2.89]
[1755645691146,3.03,178.36,178.28,3.13]
[1755645693652,3.03,178.41,178.28,3.13]
[1755645694148,3.03,178.41,178.26,3.13]
[1755645695148,3.03,178.41,178.33,3.13]
[1755645696653,3.03,178.41,178.33,8.7377]
[1755645696950,3.03,178.41,178.33,3.13]
[1755645697152,3.03,178.41,178.34,5.6074]
[1755645697851,3.03,178.45,178.29,3.13]
[1755645698151,3.03,178.45,178.32,5.87438215]
[1755645698344,3.03,178.51,178.33,3.13]
[1755645698547,4.00566446,178.51,178.38,8.7358]
[1755645698743,0.97566446,178.51,178.38,8.7358]
[1755645698944,3.03,178.5,178.38,3.13]
[1755645699545,8.90438215,178.54,178.38,3.13]
[1755645699750,8.90438215,178.54,178.43,5.6043]
[1755645699948,3.03,178.53,178.43,3.13]
[1755645700152,3.03,178.53,178.37,3.13]
[1755645701156,3.03,178.53,178.38,5.6061]
[1755645701958,3.03,178.53,178.4,3.13]
[1755645703161,3.03,178.53,178.41,3.13]
[1755645703559,3.03,178.53,178.44,3.13]
[1755645705256,3.03,178.53,178.4,3.13]
[1755645705859,3.03,178.53,178.42,3.13]
[1755645707061,3.03,178.53,178.38,3.13]
[1755645707262,3.03,178.49,178.38,3.13]
[1755645708271,3.03,178.49,178.38,8.736]
[1755645709071,24.01810819,178.6,178.39,3.13]
[1755645709072,3.03,178.53,178.39,3.13]
[1755645709575,3.03,178.57,178.47,3.13]
[1755645711065,3.03,178.56,178.43,3.13]
[1755645713365,3.03,178.52,178.39,145.29]
[1755645714569,7.17810819,178.6,178.35,3.13]
[1755645714570,3.03,178.48,178.35,3.13]
[1755645717367,5.87438215,178.45,178.35,3.13]
[1755645717564,3.03,178.44,178.35,3.13]
[1755645720366,2.86,178.48,178.35,3.13]
[1755645720775,2.86,178.48,178.39,3.02]
[1755645721265,2.86,178.48,178.39,8.6258]
[1755645721573,2.86,178.52,178.39,3.02]
[1755645721774,2.86,178.52,178.4,5.6053]
[1755645721976,2.86,178.52,178.41,3.02]
[1755645722480,2.86,178.52,178.41,8.6251]
[1755645722872,2.86,178.52,178.37,5.87438215]
[1755645723079,2.86,178.52,178.38,3.02]
[1755645723271,2.86,178.52,178.42,5.6046]
[1755645723673,2.86,178.52,178.43,3.02]
[1755645726275,2.86,178.52,178.39,3.02]
[1755645726780,2.86,178.48,178.39,3.02]
[1755645729480,0.97519966,178.6,178.39,3.02]
[1755645729481,5.87438215,178.53,178.39,8.6258]
[1755645729673,2.86,178.57,178.4,8.89438215]
[1755645729979,2.86,178.57,178.41,3.02]
[1755645730286,2.86,178.57,178.44,3.02]
[1755645730671,2.86,178.57,178.45,5.6039]
[1755645731477,2.86,178.57,178.44,8.6242]
[1755645731677,2.86,178.57,178.44,3.02]
[1755645732073,2.86,178.57,178.47,5.6033]
[1755645732273,2.86,178.57,178.48,3.02]
[1755645732872,2.86,178.61,178.48,3.02]
[1755645733581,2.86,178.61,178.49,5.6027]
[1755645733782,2.86,178.61,178.48,3.02]
[1755645735287,2.5322825,178.6,178.48,3.02]
[1755645735482,2.86,178.59,178.48,3.02]
[1755645737587,2.86,178.59,178.48,5.603]
[1755645737787,2.86,178.59,178.49,3.02]
[1755645738683,380.75495377,178.63,178.49,3.02]
[1755645739488,380.75495377,178.63,178.49,8.6226]
[1755645739684,2.86,178.62,178.49,3.02]
[1755645741696,2.86,178.67,178.51,3.02]
[1755645742295,2.86,178.67,178.52,3.02]
[1755645742494,2.86,178.67,178.55,5.6008]
[1755645742797,2.86,178.67,178.56,3.02]
[1755645743198,2.86,178.67,178.52,3.02]
[1755645743593,2.86,178.67,178.5,10.56844324]
[1755645743897,2.86,178.67,178.51,3.02]
[1755645744299,2.86,178.67,178.53,3.02]
[1755645744700,2.86,178.64,178.53,3.02]
[1755645744896,2.53165369,178.63,178.53,3.02]
[1755645745094,2.86,178.62,178.53,3.02]
[1755645746895,2.86,178.62,178.49,3.02]
[1755645747091,2.86,178.6,178.49,3.02]
[1755645747696,2.86,178.56,178.45,3.02]
[1755645748291,5.87438215,178.61,178.45,3.02]
[1755645748595,3.04,178.6,178.45,3.02]
[1755645748802,3.04,178.6,178.48,5.603]
[1755645748995,3.04,178.6,178.49,2.89]
[1755645750602,3.04,178.6,178.42,146.21406109]
[1755645750603,3.04,178.6,178.44,2.89]
[1755645750901,3.04,178.56,178.44,2.89]
[1755645751800,3.04,178.56,178.45,2.89]
[1755645752598,5.87438215,178.55,178.45,2.89]
[1755645752799,3.04,178.54,178.45,2.89]
[1755645756101,6.20290853,178.63,178.45,2.89]
[1755645756304,3.04,178.57,178.45,2.89]
[1755645756498,3.04,178.61,178.48,5.6029]
[1755645756699,3.04,178.61,178.49,2.89]
[1755645759804,3.04,178.61,178.49,5.6026]
[1755645760106,3.04,178.61,178.5,2.89]
[1755645762607,3.04,178.59,178.5,2.89]
[1755645763110,8.91438215,178.59,178.5,2.89]
[1755645763611,3.04,178.58,178.5,2.89]
[1755645764305,3.04,178.58,178.46,2.89]
[1755645764702,5.87438215,178.59,178.49,5.6026]
[1755645764904,3.04,178.61,178.5,2.89]
[1755645765609,5.87438215,178.63,178.5,2.89]
[1755645766112,5.87438215,178.63,178.52,5.6017]
[1755645766312,5.87438215,178.63,178.53,2.89]
[1755645766504,141.24,178.64,178.53,2.89]
[1755645768613,5.87438215,178.63,178.53,2.89]
[1755645768808,5.58238915,178.62,178.53,2.89]
[1755645769006,3.04,178.62,178.53,2.89]
[1755645769602,141.24,178.64,178.53,2.89]
[1755645769603,141.24,178.64,178.54,5.6011]
[1755645769808,141.24,178.64,178.55,2.89]
[1755645770613,3.04,178.63,178.55,2.89]
[1755645772416,141.24,178.64,178.55,2.89]
[1755645773314,144.28,178.64,178.55,2.89]
[1755645774915,2.5484837,178.63,178.55,2.89]
[1755645775115,144.28,178.64,178.55,2.89]
[1755645775311,2.5484837,178.63,178.55,2.89]
[1755645775511,144.28,178.64,178.55,2.89]
[1755645775712,2.54859335,178.63,178.55,2.89]
[1755645775915,144.28,178.64,178.55,2.89]
[1755645776114,2.54859335,178.63,178.55,2.89]
[1755645776418,2.54847739,178.62,178.5,2.89]
[1755645776617,3.04,178.61,178.5,2.89]
[1755645776822,5.87438215,178.6,178.5,2.89]
[1755645777014,3.04,178.59,178.5,2.89]
[1755645780526,5.87438215,178.56,178.46,2.98]
[1755645780820,5.59871003,178.55,178.46,2.98]
[1755645781022,3.05,178.55,178.46,2.98]
[1755645782122,3.05,178.58,178.47,2.98]
[1755645782329,3.05,178.61,178.48,7.67406109]
[1755645782517,3.05,178.61,178.51,5.602]
[1755645782721,141.06,178.64,178.52,7.67406109]
[1755645783125,141.06,178.64,178.53,2.98]
[1755645783718,141.06,178.64,178.53,8.5813]
[1755645783924,141.06,178.64,178.54,2.98]
[1755645784227,141.06,178.64,178.49,5.87438215]
[1755645784228,3.05,178.65,178.55,5.6007]
[1755645784425,3.05,178.65,178.56,2.98]
[1755645786324,3.05,178.65,178.53,2.98]
[1755645786528,3.05,178.63,178.53,2.98]
[1755645787132,3.05,178.61,178.5,2.98]
[1755645787828,3.05,178.59,178.5,2.98]
[1755645788226,2.54693103,178.58,178.5,2.98]
[1755645788529,3.05,178.61,178.5,2.98]
[1755645788727,2.54716171,178.6,178.5,2.98]
[1755645788926,5.59716171,178.59,178.5,2.98]
[1755645789127,3.05,178.59,178.5,2.98]
[1755645789328,2.54687292,178.58,178.5,2.98]
[1755645789527,3.05,178.59,178.5,2.98]
[1755645789732,3.05,178.57,178.46,2.98]
[1755645789933,2.54682388,178.56,178.46,2.98]
[1755645790127,5.87438215,178.58,178.46,2.98]
[1755645790128,3.05,178.55,178.46,2.98]
[1755645791835,5.87438215,178.54,178.46,2.98]
[1755645792824,3.05,178.53,178.42,2.98]
[1755645793133,3.05,178.53,178.39,141.26]
[1755645793134,5.87438215,178.5,178.38,7.68123598]
[1755645793435,3.05,178.49,178.38,2.98]
[1755645795832,147.21438215,178.54,178.39,2.98]
[1755645796136,3.05,178.53,178.39,2.98]
[1755645796337,3.05,178.53,178.41,2.98]
[1755645797629,3.05,178.53,178.41,8.585]
[1755645797829,3.05,178.53,178.42,2.98]
[1755645801643,3.05,178.53,178.44,2.98]
[1755645812845,3.05,178.53,178.39,3.17]
[1755645814342,3.05,178.53,178.4,3.17]
[1755645818345,5.87438215,178.52,178.4,3.17]
[1755645818647,3.16,178.51,178.4,3.17]
[1755645821049,3.16,178.51,178.41,5.6052]
[1755645821247,141.34,178.54,178.4,3.17]
[1755645821748,141.34,178.54,178.42,3.17]
[1755645821943,3.16,178.53,178.42,3.17]
[1755645823048,3.16,178.53,178.42,8.7748]
[1755645823249,3.16,178.53,178.43,3.17]
[1755645824346,3.16,178.51,178.39,3.17]
[1755645824649,3.16,178.47,178.39,3.17]
[1755645825446,5.87438215,178.44,178.32,4.70123598]
[1755645825650,5.87438215,178.4,178.3,3.17]
[1755645825950,3.16,178.39,178.3,3.17]
[1755645826652,3.16,178.43,178.32,5.608]
[1755645826847,3.16,178.43,178.33,3.17]
[1755645827154,3.16,178.42,178.33,3.17]
[1755645828152,141.12,178.45,178.33,3.17]
[1755645828748,141.12,178.45,178.29,4.70123598]
[1755645828952,3.16,178.44,178.3,3.17]
[1755645829551,3.16,178.44,178.3,5.6084]
[1755645829752,3.16,178.44,178.31,3.17]
[1755645830745,5.87438215,178.42,178.31,3.17]
[1755645830948,3.16,178.41,178.31,3.17]
[1755645832351,141.12,178.45,178.31,3.17]
[1755645832550,144.28,178.45,178.31,3.17]
[1755645832746,144.28,178.45,178.32,5.608]
[1755645832951,144.28,178.45,178.33,3.17]
[1755645833554,144.28,178.45,178.34,3.17]
[1755645834556,3.16,178.44,178.34,3.17]
[1755645834754,2.54299704,178.43,178.3,3.17]
[1755645834950,3.16,178.43,178.3,3.17]
[1755645835156,3.16,178.41,178.3,3.17]
[1755645837362,3.16,178.41,178.3,5.6086]
[1755645837562,3.16,178.41,178.31,3.17]
[1755645837762,3.16,178.44,178.31,3.17]
[1755645837963,3.16,178.44,178.31,8.7782]
[1755645838167,3.16,178.44,178.32,3.17]
[1755645839758,5.87438215,178.43,178.32,3.17]
[1755645839960,2.95,178.42,178.32,3.17]
[1755645840561,2.95,178.47,178.34,5.6074]
[1755645840867,2.95,178.47,178.35,3.0]
[1755645841565,2.95,178.45,178.31,3.0]
[1755645841757,2.95,178.41,178.31,3.0]
[1755645842161,2.95,178.41,178.26,151.73561813]
[1755645842162,2.95,178.41,178.26,3.0]
[1755645842465,2.95,178.37,178.26,3.0]
[1755645842868,2.95,178.33,178.21,3.0]
[1755645843170,2.95,178.25,178.15,3.0]
[1755645843470,5.87438215,178.22,178.1,3.0]
[1755645843663,2.95,178.21,178.1,3.0]
[1755645844961,124.0,178.25,178.1,3.0]
[1755645845168,2.95,178.22,178.1,3.0]
[1755645845359,5.87438215,178.21,178.1,3.0]
[1755645845563,2.95,178.22,178.1,3.0]
[1755645845564,8.82438215,178.22,178.1,3.0]
[1755645846168,2.95,178.21,178.1,3.0]
[1755645846762,5.87438215,178.22,178.1,3.0]
[1755645846967,2.95,178.25,178.1,3.0]
[1755645847273,2.95,178.25,178.15,3.0]
[1755645847466,2.95,178.25,178.16,0.03715189]
[1755645848171,0.03878543,178.22,178.17,3.0]
[1755645848361,0.03878543,178.22,178.18,3.0]
[1755645848566,0.03878543,178.22,178.19,3.0]
[1755645848767,0.03878543,178.22,178.1,3.0]
[1755645848971,2.95,178.21,178.18,0.03752665]
[1755645849367,2.95,178.21,178.1,3.0]
[1755645850273,5.87438215,178.22,178.1,3.0]
[1755645850471,2.95,178.25,178.1,3.0]
[1755645850669,2.95,178.25,178.15,3.0]
[1755645852872,5.87438215,178.22,178.08,3.0]
[1755645853076,2.95,178.21,178.08,3.0]
[1755645853377,2.95,178.21,178.13,0.03760212]
[1755645853577,5.87438215,178.18,177.9,9.37528245]
[1755645853779,141.86,178.24,177.96,3.0]
[1755645853780,2.95,178.11,177.96,3.0]
[1755645853968,5.87438215,178.04,177.91,3.0]
[1755645854173,2.95,178.03,177.91,3.0]
[1755645854568,5.87438215,178.0,177.91,3.0]
[1755645855576,5.87438215,178.0,177.87,3.0]
[1755645855773,2.95,177.99,177.87,3.0]
[1755645856275,2.95,177.91,177.85,0.97813255]
[1755645856882,143.32,177.93,177.81,3.0]
[1755645857572,143.26,177.94,177.81,3.0]
[1755645857773,2.95,177.96,177.81,3.0]
[1755645858772,2.95,177.91,177.76,3.0]
[1755645858972,2.95,177.87,177.73,0.97871024]
[1755645859176,2.95,177.82,177.73,0.97871024]
[1755645859384,2.95,177.82,177.66,3.0]
[1755645859586,143.36,177.81,177.66,3.0]
[1755645859785,2.95,177.82,177.66,3.0]
[1755645860085,143.34,177.84,177.66,3.0]
[1755645860481,2.95,177.83,177.66,3.0]
[1755645860696,143.34,177.84,177.71,3.0]
[1755645860986,9.39936761,177.87,177.71,3.0]
[1755645860987,2.95,177.83,177.71,3.0]
[1755645861789,12.34936761,177.83,177.71,3.0]
[1755645862288,2.95,177.83,177.71,3.0]
[1755645863593,2.95,177.83,177.72,3.0]
[1755645863993,3.92902688,177.88,177.72,3.0]
[1755645864389,2.95,177.88,177.76,3.0]
[1755645864598,0.97891672,177.91,177.76,3.0]
[1755645864798,2.95,177.94,177.76,3.0]
[1755645865192,0.97875153,177.92,177.76,3.0]
[1755645865594,2.95,177.91,177.76,3.0]
[1755645866894,0.04092548,177.85,177.76,3.0]
[1755645867902,2.95,177.84,177.68,3.0]
[1755645868702,0.04251747,177.78,177.68,3.0]
[1755645871301,2.9,177.77,177.63,2.92]
[1755645872098,0.04322169,177.72,177.63,2.92]
[1755645872299,2.94322169,177.72,177.63,2.92]
[1755645872497,2.94322169,177.72,177.6,377.26]
[1755645872701,2.9,177.69,177.5,8.5536]
[1755645873000,2.9,177.69,177.51,2.92]
[1755645873201,2.9,177.69,177.53,2.92]
[1755645873400,0.04189016,177.61,177.53,2.92]
[1755645874207,2.9,177.74,177.53,3.48]
[1755645874398,2.9,177.74,177.52,0.98008843]
[1755645874399,2.9,177.74,177.58,2.92]
[1755645874599,9.39936761,177.72,177.58,2.92]
[1755645874904,2.9,177.71,177.58,2.92]
[1755645875198,2.9,177.71,177.34,11.2774]
[1755645875503,2.9,177.7,177.63,0.03552385]
[1755645875894,0.04288014,177.56,177.53,2.92]
[1755645876100,0.04288014,177.56,177.49,0.98011604]
[1755645876302,2.9,177.66,177.5,2.92]
[1755645876501,2.9,177.66,177.5,8.5538]
[1755645876699,2.9,177.66,177.5,2.92]
[1755645877098,0.03559331,177.6,177.5,2.92]
[1755645878603,0.03559331,177.6,177.52,2.92]
[1755645878995,380.92,177.71,177.59,2.92]
[1755645879199,2.9,177.71,177.59,2.92]
[1755645879801,2.9,177.71,177.6,5.6304]
[1755645880198,2.9,177.71,177.64,0.04093323]
[1755645881805,2.9,177.76,177.64,0.04093323]
[1755645882003,2.9,177.8,177.65,2.92]
[1755645882201,2.9,177.8,177.67,5.6282]
[1755645882401,2.9,177.8,177.68,0.03987873]
[1755645882903,2.9,177.8,177.66,5.6287]
[1755645883210,2.9,177.8,177.72,0.04079772]
[1755645886409,2.9,177.87,177.73,2.92]
[1755645887316,2.9,177.87,177.78,0.03899727]
[1755645887611,5.6238,177.82,177.78,0.03899727]
[1755645887812,2.9,177.87,177.78,0.03899727]
[1755645888412,5.6246,177.79,177.78,0.03899727]